fUSD/lending_fUSD_20250716
["ID","MTS","AMOUNT","RATE_DAILY","PERIOD"]
[372518968,1752669058215,-684.26,0.00021917,2]
[372518969,1752669058227,-462.42014846,0.00021917,2]
[372518970,1752669058236,-460.0,0.00021917,2]
[372518971,1752669058246,-2986.99,0.00021917,2]
[372518972,1752669058256,-2573.02,0.00021917,2]
[372518973,1752669058265,-460.0,0.00021917,2]
[372518975,1752669058275,-500.0,0.00021917,2]
[372518977,1752669058286,-460.0,0.00021917,2]
[372518979,1752669058295,-461.66072739,0.00021917,2]
[372518981,1752669058313,-460.0,0.00021917,2]
[372518984,1752669058324,-460.0,0.00021917,2]
[372518986,1752669058333,-1824.18,0.00021917,2]
[372518988,1752669058343,-460.0,0.00021917,2]
[372518990,1752669058352,-460.0,0.00021917,2]
[372518991,1752669058362,-547.19546923,0.00021917,2]
[372518994,1752669058371,-500.0,0.00021917,2]
[372518995,1752669058381,-460.0,0.00021917,2]
[372518998,1752669058390,-573.31,0.00021917,2]
[372519000,1752669058399,-1197.4,0.00021917,2]
[372519002,1752669058409,-595.88,0.00021917,2]
[372519004,1752669058419,-460.0,0.00021917,2]
[372519006,1752669058428,-460.0,0.00021917,2]
[372519008,1752669058438,-500.0,0.00021917,2]
[372519010,1752669058447,-460.0,0.00021917,2]
[372519012,1752669058459,-214.131649,0.00021917,2]
[372519013,1752669058469,-500.0,0.00021917,2]
[372519016,1752669058479,-500.0,0.00021917,2]
[372519018,1752669058488,-500.0,0.00021917,2]
[372519020,1752669058498,-2561.48,0.00021917,2]
[372519022,1752669058507,-460.0,0.00021917,2]
[372519024,1752669058517,-150.0,0.00021917,2]
[372519026,1752669058527,-460.0,0.00021917,2]
[372519028,1752669058536,-6654.32,0.00021917,2]
[372519030,1752669058545,-4323.38,0.00021917,2]
[372519032,1752669058555,-460.0,0.00021917,2]
[372519034,1752669058564,-500.0,0.00021917,2]
[372519036,1752669058573,-460.0,0.00021917,2]
[372519037,1752669058583,-460.0,0.00021917,2]
[372519040,1752669058592,-460.0,0.00021917,2]
[372519042,1752669058602,-1827.79,0.00021917,2]
[372519043,1752669058612,-150.0,0.00021917,2]
[372519045,1752669058621,-701.55,0.00021917,2]
[372519048,1752669058631,-460.43728867,0.00021917,2]
[372519050,1752669058640,-1231.0,0.00021917,2]
[372519051,1752669058650,-3140.05,0.00021917,2]
[372519054,1752669058660,-460.0,0.00021917,2]
[372519056,1752669058669,-460.0,0.00021917,2]
[372519057,1752669058678,-623.79,0.00021917,2]
[372519059,1752669058688,-460.0,0.00021917,2]
[372519062,1752669058698,-460.0,0.00021917,2]
[372519064,1752669058710,-460.0,0.00021917,2]
[372519065,1752669058719,-2320.72,0.00021917,2]
[372519067,1752669058729,-460.0,0.00021917,2]
[372519070,1752669058739,-460.0,0.00021917,2]
[372519072,1752669058749,-460.0,0.00021917,2]
[372519074,1752669058758,-1221.52,0.00021917,2]
[372519076,1752669058768,-460.0,0.00021917,2]
[372519078,1752669058777,-460.0,0.00021917,2]
[372519080,1752669058787,-483.81585413,0.00021917,2]
[372519082,1752669058796,-1719.48,0.00021917,2]
[372519084,1752669058806,-460.0,0.00021917,2]
[372519086,1752669058815,-460.0,0.00021917,2]
[372519088,1752669058825,-462.09173111,0.00021917,2]
[372519090,1752669058834,-460.0,0.00021917,2]
[372519092,1752669058844,-818.12,0.00021917,2]
[372519094,1752669058854,-838.7287696,0.00021917,7]
[372519096,1752669058863,-460.0,0.00021917,2]
[372519098,1752669058872,-19766.43,0.00021917,2]
[372519100,1752669058882,-363.463443,0.00021917,2]
[372519102,1752669058891,-363.463443,0.00021917,2]
[372519104,1752669058901,-1155.46,0.00021917,2]
[372519106,1752669058911,-363.463443,0.00021917,2]
[372519108,1752669058921,-1046.91,0.00021917,2]
[372519110,1752669058930,-3585.13,0.00021917,2]
[372519112,1752669058939,-363.463443,0.00021917,2]
[372519114,1752669058949,-363.463443,0.00021917,2]
[372519116,1752669058961,-700.68,0.00021917,2]
[372519118,1752669058971,-460.0,0.00021917,2]
[372519119,1752669058980,-2220.28,0.00021917,2]
[372519121,1752669058990,-363.463443,0.00021917,2]
[372519123,1752669058999,-363.463443,0.00021917,2]
[372519126,1752669059009,-460.0,0.00021917,2]
[372519128,1752669059023,-363.463443,0.00021917,2]
[372519130,1752669059033,-460.0,0.00021917,2]
[372519132,1752669059042,-363.463443,0.00021917,2]
[372519134,1752669059052,-460.0,0.00021917,2]
[372519136,1752669059062,-461.20468403,0.00021917,2]
[372519138,1752669059072,-363.463443,0.00021917,2]
[372519140,1752669059081,-460.0,0.00021917,2]
[372519142,1752669059093,-363.463443,0.00021917,2]
[372519144,1752669059103,-363.463443,0.00021917,2]
[372519147,1752669059113,-460.0,0.00021917,2]
[372519148,1752669059123,-1140.9,0.00021917,2]
[372519150,1752669059132,-363.463443,0.00021917,2]
[372519152,1752669059142,-1520.58,0.00021917,2]
[372519155,1752669059151,-363.463443,0.00021917,2]
[372519156,1752669059161,-152.70195244,0.00021917,2]
[372519158,1752669059171,-3702.03,0.00021917,2]
[372519160,1752669059180,-460.0,0.00021917,2]
[372519162,1752669059192,-484.89009408,0.00021917,2]
[372519165,1752669059208,-13045.73,0.00021917,2]
[372519167,1752669059218,-363.463443,0.00021917,2]
[372519169,1752669059227,-1070.81,0.00021917,2]
[372519171,1752669059237,-363.463443,0.00021917,2]
[372519173,1752669059249,-151.0,0.00021917,2]
[372519175,1752669059258,-460.0,0.00021917,2]
[372519177,1752669059268,-1569.38,0.00021917,2]
[372519179,1752669059279,-460.0,0.00021917,2]
[372519181,1752669059289,-363.463443,0.00021917,2]
[372519183,1752669059298,-363.463435,0.00021917,2]
[372519185,1752669059308,-460.89151191,0.00021917,2]
[372519187,1752669059317,-460.0,0.00021917,2]
[372519189,1752669059327,-460.0,0.00021917,2]
[372519191,1752669059337,-460.0,0.00021917,2]
[372519193,1752669059346,-747.54,0.00021917,2]
[372519195,1752669059355,-460.0,0.00021917,2]
[372519197,1752669059365,-460.0,0.00021917,2]
[372519199,1752669059375,-1706.59,0.00021917,2]
[372519201,1752669059384,-460.0,0.00021917,2]
[372519203,1752669059394,-625.97,0.00021917,2]
[372519205,1752669059404,-1551.2,0.00021917,2]
[372519207,1752669059414,-460.0,0.00021917,2]
[372519209,1752669059423,-460.0,0.00021917,2]
[372519211,1752669059434,-460.0,0.00021917,2]
[372519213,1752669059444,-876.1,0.00021917,2]
[372519215,1752669059455,-460.0,0.00021917,2]
[372519217,1752669059465,-460.0,0.00021917,2]
[372519219,1752669059475,-460.0,0.00021917,2]
[372519221,1752669059486,-468.6,0.00021917,2]
[372519223,1752669059496,-5880.43,0.00021917,2]
[372519225,1752669059506,-460.0,0.00021917,2]
[372519227,1752669059516,-2015.2,0.00021917,2]
[372519229,1752669059525,-460.0,0.00021917,2]
[372519232,1752669059535,-460.0,0.00021917,2]
[372519234,1752669059545,-460.0,0.00021917,2]
[372519235,1752669059554,-793.54,0.00021917,2]
[372519236,1752669059563,-460.0,0.00021917,2]
[372519237,1752669059573,-1535.35,0.00021917,2]
[372519238,1752669059583,-502.39310709,0.00021917,2]
[372519260,1752669059798,-460.0,0.00021917,2]
[372519264,1752669059855,-2675.37,0.00021917,2]
[372519266,1752669059866,-1371.09,0.00021917,2]
[372519268,1752669059876,-151.0,0.00021917,2]
[372519270,1752669059886,-460.0,0.00021917,2]
[372519272,1752669059896,-618.25,0.00021917,2]
[372519274,1752669059906,-1861.9,0.00021917,2]
[372519276,1752669059916,-4025.59,0.00021917,2]
[372519278,1752669059925,-1899.48,0.00021917,2]
[372519280,1752669059936,-1915.28,0.00021917,2]
[372519282,1752669059946,-476.61752775,0.00021917,7]
[372519284,1752669059957,-460.0,0.00021917,2]
[372519286,1752669059968,-2836.67,0.00021917,2]
[372519288,1752669059978,-1317.98,0.00021917,2]
[372519290,1752669059988,-460.0,0.00021917,2]
[372519293,1752669059998,-2395.57,0.00021917,2]
[372519295,1752669060008,-493.46383809,0.00021917,2]
[372519296,1752669060018,-1265.83,0.00021917,2]
[372519298,1752669060028,-1053.33,0.00021917,2]
[372519300,1752669060038,-460.0,0.00021917,2]
[372519302,1752669060048,-483.73,0.00021917,2]
[372519305,1752669060059,-460.0,0.00021917,2]
[372519306,1752669060069,-460.0,0.00021917,2]
[372519308,1752669060079,-460.0,0.00021917,2]
[372519310,1752669060089,-460.0,0.00021917,2]
[372519312,1752669060099,-460.0,0.00021917,2]
[372519315,1752669060109,-1384.37,0.00021917,2]
[372519316,1752669060119,-3053.21,0.00021917,2]
[372519318,1752669060129,-460.0,0.00021917,2]
[372519320,1752669060138,-2023.54,0.00021917,2]
[372519322,1752669060148,-500.0,0.00021917,2]
[372519324,1752669060158,-814.63,0.00021917,2]
[372519326,1752669060168,-460.0,0.00021917,2]
[372519328,1752669060178,-1078.32,0.00021917,2]
[372519330,1752669060189,-460.60197169,0.00021917,2]
[372519333,1752669060199,-388.70770517,0.00021917,2]
[372519334,1752669060213,-460.0,0.00021917,2]
[372519336,1752669060223,-2463.62,0.00021917,2]
[372519338,1752669060233,-460.0,0.00021917,2]
[372519340,1752669060245,-1613.46,0.00021917,2]
[372519342,1752669060255,-6577.49,0.00021917,2]
[372519344,1752669060265,-3184.25,0.00021917,2]
[372519347,1752669060275,-641.07,0.00021917,2]
[372519348,1752669060287,-1953.19,0.00021917,2]
[372519350,1752669060298,-1953.19,0.00021917,2]
[372519352,1752669060308,-1547.14,0.00021917,2]
[372519354,1752669060318,-460.99355165,0.00021917,2]
[372519356,1752669060330,-595.78,0.00021917,2]
[372519358,1752669060340,-1953.19,0.00021917,2]
[372519360,1752669060351,-1953.19,0.00021917,2]
[372519363,1752669060361,-1953.19,0.00021917,2]
[372519365,1752669060371,-1953.19,0.00021917,2]
[372519367,1752669060381,-1953.19,0.00021917,2]
[372519368,1752669060391,-460.0,0.00021917,2]
[372519371,1752669060402,-466.12448087,0.00021917,2]
[372519373,1752669060418,-572.52,0.00021917,2]
[372519375,1752669060429,-460.0,0.00021917,2]
[372519377,1752669060439,-3148.56,0.00021917,2]
[372519379,1752669060451,-460.78601271,0.00021917,2]
[372519381,1752669060462,-460.0,0.00021917,2]
[372519383,1752669060472,-1659.92,0.00021917,2]
[372519385,1752669060482,-1824.23,0.00021917,2]
[372519387,1752669060492,-460.0,0.00021917,2]
[372519389,1752669060503,-1450.37,0.00021917,2]
[372519391,1752669060512,-453.98541708,0.00021917,2]
[372519393,1752669060522,-460.0,0.00021917,2]
[372519395,1752669060532,-621.02,0.00021917,2]
[372519398,1752669060542,-739.34,0.00021917,2]
[372519400,1752669060552,-9974.04,0.00021917,2]
[372519402,1752669060562,-460.0,0.00021917,2]
[372519404,1752669060572,-792.81,0.00021917,2]
[372519406,1752669060582,-460.0,0.00021917,2]
[372519408,1752669060591,-460.0,0.00021917,2]
[372519410,1752669060601,-582.91,0.00021917,2]
[372519412,1752669060611,-150.923723,0.00021917,2]
[372519414,1752669060621,-461.83715601,0.00021917,2]
[372519416,1752669060631,-882.84,0.00021917,2]
[372519418,1752669060641,-460.0,0.00021917,2]
[372519420,1752669060651,-2241.11,0.00021917,2]
[372519422,1752669060661,-461.29629453,0.00021917,2]
[372519424,1752669060671,-2538.05,0.00021917,2]
[372519426,1752669060680,-460.0,0.00021917,2]
[372519428,1752669060690,-460.0,0.00021917,2]
[372519430,1752669060700,-460.0,0.00021917,2]
[372519432,1752669060711,-508.1,0.00021917,2]
[372519434,1752669060720,-460.0,0.00021917,2]
[372519436,1752669060730,-460.0,0.00021917,2]
[372519438,1752669060740,-477.61211883,0.00021917,2]
[372519440,1752669060750,-2777.01,0.00021917,2]
[372519442,1752669060760,-460.0,0.00021917,2]
[372519444,1752669060769,-460.0,0.00021917,2]
[372519446,1752669060780,-460.0,0.00021917,2]
[372519448,1752669060790,-460.0,0.00021917,2]
[372519450,1752669060799,-460.0,0.00021917,2]
[372519452,1752669060810,-460.0,0.00021917,2]
[372519454,1752669060820,-460.0,0.00021917,2]
[372519456,1752669060830,-460.0,0.00021917,2]
[372519458,1752669060840,-460.0,0.00021917,2]
[372519459,1752669060849,-213.48614129,0.00021917,2]
[372519460,1752669060859,-629.11,0.00021917,2]
[372519461,1752669060870,-2464.49,0.00021917,2]
[372519462,1752669060879,-460.0,0.00021917,2]
[372519463,1752669060889,-877.21,0.00021917,2]
[372519464,1752669060899,-1342.03,0.00021917,2]
[372519466,1752669060909,-460.0,0.00021917,2]
[372519468,1752669060919,-460.0,0.00021917,2]
[372519470,1752669060928,-461.47181183,0.00021917,2]
[372519472,1752669060939,-2997.62,0.00021917,2]
[372519474,1752669060949,-849.15,0.00021917,2]
[372519475,1752669060959,-849.15,0.00021917,2]
[372519478,1752669060969,-849.15,0.00021917,2]
[372519479,1752669060979,-3103.31,0.00021917,2]
[372519482,1752669060989,-1049.96,0.00021917,2]
[372519483,1752669060998,-849.15,0.00021917,2]
[372519486,1752669061008,-461.07335345,0.00021917,2]
[372519488,1752669061018,-750.09,0.00021917,2]
[372519490,1752669061027,-849.15,0.00021917,2]
[372519492,1752669061038,-849.15,0.00021917,2]
[372519494,1752669061048,-460.0,0.00021917,2]
[372519496,1752669061060,-1950.53,0.00021917,2]
[372519498,1752669061071,-2684.67,0.00021917,2]
[372519500,1752669061081,-151.0,0.00021917,2]
[372519502,1752669061091,-151.0,0.00021917,2]
[372519504,1752669061101,-460.0,0.00021917,2]
[372519506,1752669061112,-460.0,0.00021917,2]
[372519508,1752669061121,-460.0,0.00021917,2]
[372519510,1752669061130,-460.0,0.00021917,2]
[372519512,1752669061140,-520.0,0.00021917,2]
[372519513,1752669061150,-1112.76,0.00021917,2]
[372519515,1752669061163,-2928.66,0.00021917,2]
[372519518,1752669061174,-460.0,0.00021917,2]
[372519519,1752669061184,-2786.66,0.00021917,2]
[372519521,1752669061195,-460.0,0.00021917,2]
[372519523,1752669061209,-153.189224,0.00021917,2]
[372519526,1752669061219,-460.0,0.00021917,2]
[372519528,1752669061229,-460.0,0.00021917,2]
[372519530,1752669061239,-2653.91,0.00021917,2]
[372519532,1752669061249,-151.0,0.00021917,2]
[372519534,1752669061260,-151.0,0.00021917,2]
[372519536,1752669061271,-539.09,0.00021917,2]
[372519538,1752669061282,-151.0,0.00021917,2]
[372519540,1752669061293,-384.12531597,0.00021917,2]
[372519542,1752669061303,-5150.31,0.00021917,2]
[372519544,1752669061313,-460.0,0.00021917,2]
[372519546,1752669061324,-151.0,0.00021917,2]
[372519548,1752669061334,-500.0,0.00021917,2]
[372519550,1752669061344,-151.0,0.00021917,2]
[372519552,1752669061354,-151.0,0.00021917,2]
[372519554,1752669061364,-151.0,0.00021917,2]
[372519556,1752669061375,-460.0,0.00021917,2]
[372519558,1752669061385,-605.84,0.00021917,2]
[372519560,1752669061396,-151.0,0.00021917,2]
[372519562,1752669061407,-460.0,0.00021917,2]
[372519564,1752669061418,-460.0,0.00021917,2]
[372519566,1752669061429,-500.0,0.00021917,2]
[372519568,1752669061439,-1047.5,0.00021917,2]
[372519570,1752669061449,-500.0,0.00021917,2]
[372519572,1752669061459,-500.0,0.00021917,2]
[372519574,1752669061469,-500.0,0.00021917,2]
[372519576,1752669061478,-460.0,0.00021917,2]
[372519578,1752669061488,-500.0,0.00021917,2]
[372519580,1752669061498,-151.0,0.00021917,2]
[372519582,1752669061508,-460.0,0.00021917,2]
[372519584,1752669061518,-151.0,0.00021917,2]
[372519586,1752669061529,-460.0,0.00021917,2]
[372519588,1752669061539,-976.04,0.00021917,2]
[372519591,1752669061549,-460.0,0.00021917,2]
[372519592,1752669061558,-155.658052,0.00021917,2]
[372519594,1752669061568,-460.0,0.00021917,2]
[372519597,1752669061579,-865.38,0.00021917,2]
[372519599,1752669061589,-460.0,0.00021917,2]
[372519601,1752669061599,-3961.26,0.00021917,2]
[372519603,1752669061608,-2143.03,0.00021917,2]
[372519605,1752669061618,-461.07437066,0.00021917,2]
[372519607,1752669061628,-538.94,0.00021917,2]
[372519609,1752669061637,-557.77,0.00021917,2]
[372519611,1752669061647,-1615.13,0.00021917,2]
[372519613,1752669061657,-463.19245736,0.00021917,2]
[372519615,1752669061667,-460.0,0.00021917,2]
[372519616,1752669061677,-460.0,0.00021917,2]
[372519618,1752669061687,-530.82,0.00021917,2]
[372519620,1752669061697,-460.0,0.00021917,2]
[372519622,1752669061710,-6965.9,0.00021917,2]
[372519624,1752669061720,-460.0,0.00021917,2]
[372519626,1752669061730,-709.65,0.00021917,2]
[372519628,1752669061740,-460.0,0.00021917,2]
[372519630,1752669061751,-2295.73,0.00021917,2]
[372519632,1752669061761,-460.0,0.00021917,2]
[372519634,1752669061771,-1153.2,0.00021917,2]
[372519636,1752669061783,-783.19,0.00021917,2]
[372519638,1752669061794,-461.17828677,0.00021917,2]
[372519640,1752669061805,-3144.9,0.00021917,2]
[372519642,1752669061816,-460.0,0.00021917,2]
[372519644,1752669061826,-2872.81,0.00021917,2]
[372519646,1752669061836,-460.0,0.00021917,2]
[372519648,1752669061846,-3068.3,0.00021917,2]
[372519650,1752669061856,-4535.4,0.00021917,2]
[372519652,1752669061867,-700.24,0.00021917,2]
[372519654,1752669061877,-694.21,0.00021917,2]
[372519656,1752669061888,-9915.4,0.00021917,2]
[372519658,1752669061898,-540.38,0.00021917,2]
[372519660,1752669061908,-460.0,0.00021917,2]
[372519662,1752669061918,-756.18,0.00021917,2]
[372519664,1752669061928,-460.0,0.00021917,2]
[372519666,1752669061938,-460.0,0.00021917,2]
[372519668,1752669061948,-758.42,0.00021917,2]
[372519670,1752669061964,-1962.85,0.00021917,2]
[372519672,1752669061974,-460.0,0.00021917,2]
[372519674,1752669061984,-581.89,0.00021917,2]
[372519676,1752669061994,-460.0,0.00021917,2]
[372519678,1752669062004,-914.49,0.00021917,2]
[372519679,1752669062014,-885.98,0.00021917,2]
[372519680,1752669062024,-49383.49,0.00021917,2]
[372519681,1752669062034,-2100.22,0.00021917,2]
[372519682,1752669062044,-3674.47,0.00021917,2]
[372519683,1752669062053,-460.0,0.00021917,2]
[372519684,1752669062062,-460.0,0.00021917,2]
[372519685,1752669062072,-460.0,0.00021917,2]
[372519686,1752669062081,-1569.04,0.00021917,2]
[372519687,1752669062498,-576.99,0.00021917,2]
[372519688,1752669062726,-460.0,0.00021917,2]
[372519689,1752669062736,-4865.0,0.00021917,2]
[372519690,1752669062746,-460.0,0.00021917,2]
[372519691,1752669062756,-460.0,0.00021917,2]
[372519692,1752669062766,-460.0,0.00021917,2]
[372519693,1752669062776,-506.74815511,0.00021917,2]
[372519694,1752669062786,-1312.79,0.00021917,2]
[372519695,1752669062796,-6543.89,0.00021917,2]
[372519696,1752669062806,-460.0,0.00021917,2]
[372519697,1752669062819,-2016.88,0.00021917,2]
[372519698,1752669062829,-2561.27,0.00021917,2]
[372519699,1752669062839,-460.0,0.00021917,2]
[372519700,1752669062849,-474.75,0.00021917,2]
[372519701,1752669062859,-460.0,0.00021917,2]
[372519702,1752669062869,-1279.32,0.00021917,2]
[372519703,1752669062879,-268.94892,0.00021917,2]
[372519704,1752669062889,-460.0,0.00021917,2]
[372519705,1752669062899,-460.0,0.00021917,2]
[372519706,1752669062909,-4549.0,0.00021917,2]
[372519707,1752669062919,-460.0,0.00021917,2]
[372519708,1752669062929,-8497.92,0.00021917,2]
[372519709,1752669062939,-1292.92,0.00021917,2]
[372519710,1752669062950,-460.0,0.00021917,2]
[372519711,1752669062964,-221.565543,0.00021917,2]
[372519712,1752669062974,-460.0,0.00021917,2]
[372519713,1752669062984,-221.565543,0.00021917,2]
[372519714,1752669062993,-460.0,0.00021917,2]
[372519715,1752669063003,-221.565543,0.00021917,2]
[372519716,1752669063013,-221.565543,0.00021917,2]
[372519717,1752669063024,-2166.94,0.00021917,2]
[372519718,1752669063034,-221.565543,0.00021917,2]
[372519719,1752669063044,-1774.99,0.00021917,2]
[372519720,1752669063055,-221.565543,0.00021917,2]
[372519721,1752669063066,-2010.47,0.00021917,2]
[372519722,1752669063076,-221.565543,0.00021917,2]
[372519723,1752669063086,-513.92,0.00021917,2]
[372519724,1752669063096,-221.565543,0.00021917,2]
[372519725,1752669063107,-460.0,0.00021917,2]
[372519726,1752669063118,-2419.68,0.00021917,2]
[372519727,1752669063128,-221.565543,0.00021917,2]
[372519728,1752669063139,-637.1,0.00021917,2]
[372519729,1752669063150,-684.93,0.00021917,2]
[372519730,1752669063161,-460.0,0.00021917,2]
[372519731,1752669063171,-221.565543,0.00021917,2]
[372519732,1752669063182,-1648.94,0.00021917,2]
[372519733,1752669063192,-221.565543,0.00021917,2]
[372519734,1752669063206,-221.565543,0.00021917,2]
[372519735,1752669063221,-221.565543,0.00021917,2]
[372519736,1752669063232,-683.0,0.00021917,2]
[372519737,1752669063243,-1327.86,0.00021917,2]
[372519738,1752669063253,-221.565543,0.00021917,2]
[372519739,1752669063263,-460.0,0.00021917,2]
[372519740,1752669063273,-221.565543,0.00021917,2]
[372519741,1752669063284,-221.565538,0.00021917,2]
[372519742,1752669063295,-151.0,0.00021917,2]
[372519743,1752669063305,-460.0,0.00021917,2]
[372519744,1752669063314,-460.0,0.00021917,2]
[372519745,1752669063325,-642.61,0.00021917,2]
[372519746,1752669063334,-1193.78,0.00021917,2]
[372519747,1752669063344,-460.0,0.00021917,2]
[372519748,1752669063355,-2200.42,0.00021917,2]
[372519749,1752669063366,-2639.72,0.00021917,2]
[372519750,1752669063377,-963.25,0.00021917,2]
[372519751,1752669063387,-460.0,0.00021917,2]
[372519752,1752669063397,-6356.71,0.00021917,2]
[372519753,1752669063408,-1059.01,0.00021917,2]
[372519754,1752669063418,-5103.13,0.00021917,2]
[372519755,1752669063428,-602.84236023,0.00021917,2]
[372519756,1752669063438,-460.0,0.00021917,2]
[372519757,1752669063448,-2273.1,0.00021917,2]
[372519758,1752669063458,-460.0,0.00021917,2]
[372519759,1752669063471,-1301.29,0.00021917,2]
[372519760,1752669063482,-1823.42,0.00021917,2]
[372519761,1752669063492,-500.0,0.00021917,2]
[372519762,1752669063502,-500.0,0.00021917,2]
[372519763,1752669063513,-500.0,0.00021917,2]
[372519764,1752669063524,-460.0,0.00021917,2]
[372519765,1752669063534,-161.25523575,0.00021917,2]
[372519766,1752669063544,-460.0,0.00021917,2]
[372519767,1752669063555,-507.84,0.00021917,2]
[372519768,1752669063565,-460.0,0.00021917,2]
[372519769,1752669063576,-635.7,0.00021917,2]
[372519770,1752669063586,-3255.1,0.00021917,2]
[372519771,1752669063596,-460.0,0.00021917,2]
[372519772,1752669063607,-460.0,0.00021917,2]
[372519773,1752669063617,-151.0,0.00021917,2]
[372519774,1752669063628,-460.0,0.00021917,2]
[372519775,1752669063638,-151.0,0.00021917,2]
[372519776,1752669063647,-151.0,0.00021917,2]
[372519777,1752669063657,-151.0,0.00021917,2]
[372519778,1752669063667,-151.0,0.00021917,2]
[372519779,1752669063678,-151.0,0.00021917,2]
[372519780,1752669063690,-500.0,0.00021917,2]
[372519781,1752669063700,-460.0,0.00021917,2]
[372519782,1752669063712,-5108.59,0.00021917,2]
[372519783,1752669063723,-151.0,0.00021917,2]
[372519784,1752669063733,-151.0,0.00021917,2]
[372519785,1752669063743,-783.36,0.00021917,2]
[372519786,1752669063753,-3652.15,0.00021917,2]
[372519787,1752669063763,-3478.56,0.00021917,2]
[372519788,1752669063773,-581.48829954,0.00021917,2]
[372519789,1752669063783,-151.0,0.00021917,2]
[372519790,1752669063793,-3415.0,0.00021917,2]
[372519791,1752669063804,-2766.28,0.00021917,2]
[372519792,1752669063814,-151.0,0.00021917,2]
[372519793,1752669063824,-151.0,0.00021917,2]
[372519794,1752669063834,-151.0,0.00021917,2]
[372519795,1752669063845,-1752.6,0.00021917,2]
[372519796,1752669063855,-214.717092,0.00021917,2]
[372519797,1752669063866,-460.0,0.00021917,2]
[372519798,1752669063876,-460.0,0.00021917,2]
[372519799,1752669063886,-586.5,0.00021917,2]
[372519800,1752669063895,-586.5,0.00021917,2]
[372519801,1752669063906,-586.5,0.00021917,2]
[372519802,1752669063916,-586.5,0.00021917,2]
[372519803,1752669063925,-460.0,0.00021917,2]
[372519804,1752669063935,-586.5,0.00021917,2]
[372519805,1752669063945,-460.0,0.00021917,2]
[372519806,1752669063954,-586.5,0.00021917,2]
[372519807,1752669063965,-586.5,0.00021917,2]
[372519808,1752669063975,-2983.25,0.00021917,2]
[372519809,1752669063985,-586.5,0.00021917,2]
[372519810,1752669063995,-602.23,0.00021917,2]
[372519811,1752669064004,-460.0,0.00021917,2]
[372519812,1752669064014,-1074.13,0.00021917,2]
[372519813,1752669064025,-460.0,0.00021917,2]
[372519814,1752669064035,-460.0,0.00021917,2]
[372519815,1752669064045,-2365.91,0.00021917,2]
[372519816,1752669064055,-460.0,0.00021917,2]
[372519817,1752669064065,-874.12,0.00021917,2]
[372519818,1752669064075,-599.2,0.00021917,2]
[372519819,1752669064085,-460.0,0.00021917,2]
[372519820,1752669064095,-460.0,0.00021917,2]
[372519821,1752669064105,-896.59,0.00021917,2]
[372519822,1752669064115,-790.82,0.00021917,2]
[372519823,1752669064124,-460.0,0.00021917,2]
[372519824,1752669064134,-460.0,0.00021917,2]
[372519825,1752669064143,-310.15333417,0.00021917,2]
[372519826,1752669064153,-975.03,0.00021917,2]
[372519827,1752669064163,-704.32,0.00021917,2]
[372519828,1752669064173,-1673.03,0.00021917,2]